bitfinex/quotes_ETHUSD_20250905
["timestamp","ask_amount","ask_price","bid_price","bid_amount"]
[1757099030053,3.905,4312.9,4312.8,4.229]
[1757099031269,3.905,4312.9,4312.8,4.6794]
[1757099031618,3.905,4312.9,4312.8,4.229]
[1757099032515,7.46982551,4312.9,4312.8,4.229]
[1757099032920,4.6648,4312.9,4312.8,4.229]
[1757099033547,0.1152,4313.3,4312.8,7.4158593]
[1757099033548,3.905,4313.1,4312.8,7.4158593]
[1757099033734,3.905,4313.1,4313.0,6.53099122]
[1757099034052,0.462,4313.6,4313.0,7.28399122]
[1757099034252,2.31838758,4313.4,4313.0,7.28399122]
[1757099034463,3.905,4313.3,4313.1,0.4504]
[1757099035056,6.2234145,4313.3,4313.0,6.53099122]
[1757099035252,0.462,4313.2,4313.0,6.53099122]
[1757099035451,4.2028,4313.1,4312.8,4.7946]
[1757099035651,0.462,4313.0,4312.8,4.3442]
[1757099035843,4.2028,4313.1,4312.9,0.4504]
[1757099036033,3.905,4313.1,4312.9,0.4504]
[1757099037558,3.905,4313.1,4313.0,4.2]
[1757099037759,4.6648,4313.1,4313.0,4.2]
[1757099037926,4.2028,4313.1,4313.0,4.2]
[1757099038734,4.6648,4313.1,4313.0,4.2]
[1757099038955,6.983318,4313.1,4313.0,4.2]
[1757099039455,7.469718,4313.1,4313.0,4.2]
[1757099040362,6.983318,4313.1,4313.0,4.2]
[1757099042231,4.2028,4313.1,4313.0,4.2]
[1757099042457,6.223518,4313.1,4313.0,4.2]
[1757099042763,4.2018,4313.1,4313.0,4.2]
[1757099043162,6.520318,4313.1,4313.0,4.2]
[1757099043465,6.982318,4313.1,4313.0,4.2]
[1757099048971,3.904,4313.1,4313.0,4.2]
[1757099049151,4.2018,4313.1,4313.0,4.2]
[1757099049675,0.1152,4313.6,4313.1,2.31846781]
[1757099049834,0.001,4313.7,4313.5,6.82599122]
[1757099050040,0.001,4313.7,4313.6,2.31824925]
[1757099050363,0.001,4313.7,4313.6,0.6001]
[1757099050537,0.3015,4313.7,4313.6,0.1152]
[1757099050742,0.3015,4313.7,4313.3,0.1152]
[1757099050743,0.7402,4313.7,4313.3,0.1152]
[1757099050945,4.3417,4313.6,4313.3,0.1152]
[1757099051143,4.3417,4313.6,4313.4,0.21609902]
[1757099051449,3.903,4313.6,4313.5,0.21609902]
[1757099051646,4.2035,4313.6,4313.5,0.21609902]
[1757099052085,4.6422,4313.6,4313.5,0.21609902]
[1757099052794,0.001,4313.7,4313.6,2.31824925]
[1757099052953,0.001,4313.7,4313.6,2.53434827]
[1757099053283,0.001,4313.7,4313.6,6.74714827]
[1757099055080,0.001,4313.7,4313.6,7.53914827]
[1757099056084,0.001,4313.7,4313.6,6.31424827]
[1757099056252,0.001,4313.7,4313.6,9.01505624]
[1757099056559,0.001,4313.7,4313.6,6.31424827]
[1757099056770,0.001,4313.7,4313.6,12.06533949]
[1757099057086,0.001,4313.7,4313.6,12.84523949]
[1757099058575,0.001,4313.7,4313.6,9.84523949]
[1757099058806,0.001,4313.7,4313.6,9.55023949]
[1757099059273,0.001,4313.7,4313.6,9.84523949]
[1757099060084,0.001,4313.7,4313.6,9.55023949]
[1757099060880,0.3015,4313.7,4313.6,9.06533949]
[1757099061088,0.001,4313.7,4313.6,9.06533949]
[1757099061402,0.3015,4313.7,4313.6,0.22009902]
[1757099061570,0.7402,4313.7,4313.6,0.22009902]
[1757099062409,1.04612575,4313.7,4313.6,4.42009902]
[1757099062612,1.04612575,4313.7,4313.6,4.204]
[1757099062907,0.001,4313.7,4313.6,4.204]
[1757099064509,0.001,4313.7,4313.6,10.73499122]
[1757099064805,0.001,4313.7,4313.6,13.83314047]
[1757099064974,0.001,4313.7,4313.6,17.04844026]
[1757099065170,0.001,4313.7,4313.6,17.48134026]
[1757099065501,0.001,4313.7,4313.6,16.47289051]
[1757099065705,0.001,4313.7,4313.6,17.16964052]
[1757099068411,0.001,4313.7,4313.6,23.26773174]
[1757099069776,0.001,4313.7,4313.6,16.73674052]
[1757099070011,0.001,4313.7,4313.6,15.11619905]
[1757099073491,0.001,4313.7,4313.6,14.63029905]
[1757099073691,0.001,4313.7,4313.6,15.11519905]
[1757099074338,0.3015,4313.7,4313.6,5.1160498]
[1757099074489,0.7402,4313.7,4313.6,17.16954026]
[1757099074690,0.001,4313.7,4313.6,17.16954026]
[1757099075123,0.001,4313.7,4313.6,17.28474026]
[1757099076924,0.001,4313.7,4313.6,18.06464026]
[1757099077222,0.001,4313.7,4313.6,20.77124823]
[1757099077411,0.001,4313.7,4313.6,20.77151205]
[1757099077615,0.001,4313.7,4313.6,21.20441205]
[1757099077924,0.001,4313.7,4313.6,19.99161205]
[1757099078122,0.7402,4313.7,4313.6,17.72370408]
[1757099078711,0.001,4313.7,4313.6,17.72370408]
[1757099079026,0.001,4313.7,4313.6,18.50360408]
[1757099079594,0.001,4313.7,4313.6,21.50360408]
[1757099079796,0.001,4313.7,4313.6,14.97261286]
[1757099082125,0.001,4313.7,4313.6,14.19271286]
[1757099083231,0.3143,4313.7,4313.6,14.19271286]
[1757099083429,0.7454,4313.7,4313.6,14.19271286]
[1757099083798,0.001,4313.7,4313.6,14.19271286]
[1757099084107,0.001,4313.7,4313.6,14.65261286]
[1757099084309,0.001,4313.7,4313.6,14.19271286]
[1757099085109,0.001,4313.7,4313.6,14.65261286]
[1757099085306,0.001,4313.7,4313.6,14.96461286]
[1757099085630,0.001,4313.7,4313.6,16.44382971]
[1757099088138,0.001,4313.7,4313.6,16.2282661]
[1757099088335,0.001,4313.7,4313.6,16.44427292]
[1757099089621,0.001,4313.7,4313.6,24.12496222]
[1757099091436,0.001,4313.7,4313.6,24.3467554]
[1757099091739,0.001,4313.7,4313.6,23.9089554]
[1757099092642,0.001,4314.2,4314.1,3.10998057]
[1757099092945,0.001,4314.2,4314.1,17.82904967]
[1757099093109,0.001,4314.2,4314.1,22.89276505]
[1757099093442,0.001,4314.3,4314.2,6.10992684]
[1757099093639,0.001,4314.3,4314.2,7.00762684]
[1757099093847,0.001,4314.3,4314.2,15.48753481]
[1757099095019,0.025,4314.8,4314.7,3.792]
[1757099095246,0.001,4314.9,4314.8,6.10960452]
[1757099095429,0.001,4314.9,4314.8,7.31930452]
[1757099096383,0.001,4314.9,4314.8,6.88150452]
[1757099096535,0.001,4314.9,4314.8,9.26331208]
[1757099098069,0.001,4315.4,4315.1,3.792]
[1757099098280,0.001,4315.4,4315.3,10.6806893]
[1757099098444,0.001,4315.4,4315.3,13.42522529]
[1757099098640,0.001,4315.4,4315.3,13.88512529]
[1757099098845,0.001,4315.4,4315.3,21.70214214]
[1757099100287,0.001,4315.4,4315.3,22.49414214]
[1757099100447,0.4311,4316.3,4315.8,14.96075681]
[1757099100642,0.4311,4316.3,4315.8,18.85975681]
[1757099100987,0.4311,4316.3,4315.8,18.97495681]
[1757099101190,0.4311,4316.3,4315.8,21.24286478]
[1757099102690,0.4311,4316.3,4315.8,21.55486478]
[1757099102993,0.4311,4316.7,4315.8,22.01476478]
[1757099103144,0.025,4316.8,4316.0,6.10896014]
[1757099103345,0.4561,4316.8,4316.0,12.27486811]
[1757099103573,0.4561,4316.8,4316.0,13.04676811]
[1757099103804,0.4561,4316.8,4316.0,17.21776811]
[1757099104086,0.4311,4316.6,4316.0,17.68136811]
[1757099104284,0.025,4316.8,4316.0,17.36936811]
[1757099104491,0.4311,4316.4,4316.0,16.90946811]
[1757099104779,0.3143,4316.1,4316.0,16.90946811]
[1757099105347,0.7454,4316.1,4316.0,16.90946811]
[1757099106183,0.001,4316.1,4316.0,17.79656811]
[1757099106355,0.001,4316.1,4316.0,17.48456811]
[1757099106769,0.001,4316.1,4316.0,17.02466811]
[1757099107275,0.001,4316.1,4316.0,17.79656811]
[1757099108078,0.001,4316.1,4316.0,17.48456811]
[1757099108443,0.001,4316.1,4316.0,17.02466811]
[1757099108840,0.001,4316.1,4316.0,17.48456811]
[1757099109540,0.001,4316.1,4316.0,17.77806811]
[1757099109845,0.025,4316.8,4316.7,6.10858442]
[1757099110163,0.025,4316.8,4316.7,10.8481074]
[1757099110366,0.025,4316.8,4316.7,11.7443074]
[1757099110574,0.025,4316.8,4316.7,12.2152074]
[1757099111486,0.3343,4316.8,4316.7,11.4342074]
[1757099112174,0.025,4316.8,4316.7,12.2152074]
[1757099114674,0.025,4316.8,4316.7,16.3862074]
[1757099115791,0.025,4316.8,4316.7,16.0927074]
[1757099116151,0.025,4316.8,4316.7,16.3862074]
[1757099116675,0.025,4316.8,4316.7,16.0927074]
[1757099117060,0.025,4316.8,4316.7,16.3862074]
[1757099117257,0.026,4317.8,4317.7,6.10804789]
[1757099117463,0.026,4317.8,4317.7,18.75876829]
[1757099117685,0.7903,4317.8,4317.7,18.87396829]
[1757099118059,0.7903,4317.8,4317.7,19.32896829]
[1757099121599,0.001,4318.7,4318.4,0.792]
[1757099121762,0.025,4318.8,4318.7,6.10751161]
[1757099122090,0.025,4318.8,4318.7,17.68420091]
[1757099122279,0.3343,4318.8,4318.7,17.68420091]
[1757099122587,0.3343,4318.8,4318.7,19.73292752]
[1757099122787,0.025,4318.8,4318.7,20.48142752]
[1757099123100,0.3343,4318.8,4318.7,20.18792752]
[1757099123460,0.025,4318.8,4318.7,20.48142752]
[1757099123662,0.025,4318.8,4318.7,20.96892752]
[1757099124770,0.025,4318.8,4318.7,20.67542752]
[1757099124971,0.025,4318.8,4318.7,20.18792752]
[1757099125387,0.025,4318.8,4318.7,20.67542752]
[1757099125787,0.4959,4319.8,4319.0,0.792]
[1757099125788,0.025,4319.8,4319.0,0.792]
[1757099125989,0.4959,4319.8,4319.3,2.31518996]
[1757099126206,0.4959,4319.8,4319.3,9.21018996]
[1757099126367,0.3103,4319.4,4319.3,5.31518996]
[1757099126567,1.2362,4319.4,4319.3,9.21018996]
[1757099126767,0.7653,4319.4,4319.3,9.21018996]
[1757099127469,0.7653,4319.4,4319.3,10.20741192]
[1757099128595,0.7653,4319.4,4319.3,11.78041192]
[1757099128596,0.001,4319.4,4319.3,11.78041192]
[1757099129067,0.001,4319.4,4319.3,7.88541192]
[1757099129269,0.001,4319.4,4319.3,11.48591192]
[1757099129501,0.001,4319.4,4319.3,11.77941192]
[1757099130774,0.001,4319.4,4319.3,11.48591192]
[1757099131312,0.001,4319.4,4319.3,10.99841192]
[1757099131472,0.3103,4319.4,4319.3,10.99841192]
[1757099131666,0.7653,4319.4,4319.3,10.11638996]
[1757099131983,0.7653,4319.4,4319.3,17.79707926]
[1757099133088,0.3103,4319.4,4319.3,17.79707926]
[1757099134116,0.7653,4319.4,4319.3,17.79707926]
[1757099134712,0.3103,4319.4,4319.3,17.79707926]
[1757099134912,0.3103,4319.4,4319.3,20.06498723]
[1757099135411,0.001,4319.4,4319.3,20.84598723]
[1757099135720,0.001,4319.4,4319.3,20.55248723]
[1757099136274,0.001,4319.4,4319.3,20.84598723]
[1757099137918,0.001,4319.9,4319.8,0.792]
[1757099138122,0.001,4320.3,4320.2,6.10670765]
[1757099138294,0.001,4320.3,4320.2,10.29320765]
[1757099138480,0.001,4320.3,4320.2,10.89590765]
[1757099138811,0.001,4320.3,4320.2,10.56990765]
[1757099139308,0.001,4320.3,4320.2,11.32900765]
[1757099139504,0.025,4320.8,4320.7,2.31443978]
[1757099139802,0.025,4320.8,4320.7,16.88812908]
[1757099139985,0.326,4320.8,4320.7,17.68012908]
[1757099140313,0.326,4320.8,4320.7,18.28902908]
[1757099140314,0.025,4320.8,4320.7,18.28902908]
[1757099141116,0.025,4320.8,4320.7,19.04762908]
[1757099141426,0.025,4320.8,4320.7,20.42524229]
[1757099143622,0.326,4320.8,4320.7,20.42524229]
[1757099143931,0.025,4320.8,4320.7,20.42524229]
[1757099144719,0.326,4320.8,4320.7,20.42524229]
[1757099145248,0.025,4320.8,4320.7,20.42524229]
[1757099146097,0.326,4320.8,4320.7,20.42524229]
[1757099146311,0.7979,4320.8,4320.7,20.42524229]
[1757099146507,0.7979,4320.8,4320.7,15.74024229]
[1757099146726,0.7979,4320.8,4320.7,17.49602908]
[1757099149500,0.7979,4320.8,4320.7,16.31978664]
[1757099152011,0.025,4320.8,4320.7,22.04138664]
[1757099152210,0.025,4320.8,4320.7,24.01629461]
[1757099153198,0.025,4320.8,4320.7,24.30929461]
[1757099153948,0.025,4320.8,4320.7,30.81374147]
[1757099154246,0.025,4320.8,4320.7,24.30929461]
[1757099154614,0.026,4320.8,4320.7,30.81374147]
[1757099154804,0.025,4321.8,4321.7,2.31390425]
[1757099155006,0.025,4321.8,4321.7,6.32010425]
[1757099155351,0.7979,4321.8,4321.7,9.32010425]
[1757099155509,0.7979,4321.8,4321.7,9.81380425]
[1757099158610,1.2916,4321.8,4321.7,16.31825111]
[1757099159242,0.7979,4321.8,4321.7,16.31825111]
[1757099161246,0.326,4321.8,4321.7,5.92280425]
[1757099161414,0.7979,4321.8,4321.7,16.31725111]
[1757099161742,0.025,4321.8,4321.7,16.78285111]
[1757099161951,0.025,4321.8,4321.7,17.57485111]
[1757099162258,0.025,4321.8,4321.7,17.86785111]
[1757099162551,0.025,4321.8,4321.7,19.88603617]
[1757099165766,0.025,4321.8,4321.7,19.12743617]
[1757099166075,0.326,4321.8,4321.7,19.12743617]
[1757099166283,0.7979,4321.8,4321.7,19.12743617]
[1757099168879,0.025,4321.8,4321.7,19.12743617]
[1757099169970,0.025,4321.8,4321.7,19.90873617]
[1757099170890,0.025,4321.8,4321.7,25.80873617]
[1757099173098,0.05,4322.8,4322.7,3.10536895]
[1757099173257,0.4592,4323.6,4322.7,8.2218801]
[1757099173458,0.025,4324.8,4323.6,6.1048874]
[1757099173795,0.4592,4324.0,4323.6,15.8928874]
[1757099174306,0.5607,4323.7,4323.6,21.60533426]
[1757099174475,0.25,4323.7,4323.6,22.39733426]
[1757099174678,0.25,4323.7,4323.6,25.90574223]
[1757099175098,0.25,4323.7,4323.6,25.12444223]
[1757099175817,0.5607,4323.7,4323.6,25.12444223]
[1757099175978,0.25,4323.7,4323.6,25.12444223]
[1757099176419,0.25,4323.7,4323.6,25.90574223]
[1757099176938,0.025,4324.8,4323.7,6.10483391]
[1757099176939,1e-08,4323.8,4323.7,6.10483391]
[1757099177135,0.025,4324.8,4324.7,6.10429911]
[1757099177305,0.025,4324.8,4324.7,16.49674597]
[1757099177488,0.7949,4324.8,4324.7,16.49674597]
[1757099177685,0.7949,4324.8,4324.7,20.56005709]
[1757099177938,0.025,4324.8,4324.7,24.45405709]
[1757099178217,0.025,4324.8,4324.7,17.94961023]
[1757099178218,0.3357,4324.8,4324.7,17.94961023]
[1757099178427,0.3357,4324.8,4324.7,24.45405709]
[1757099178623,0.3357,4324.8,4324.7,11.21229911]
[1757099178828,0.7949,4324.8,4324.7,15.10629911]
[1757099179002,1.2562,4324.8,4324.7,6.896]
[1757099179200,1.2562,4324.8,4324.7,9.20829911]
[1757099179420,1.2562,4324.8,4324.7,6.896]
[1757099179626,1.2562,4324.8,4324.7,9.20829911]
[1757099179827,0.7949,4324.8,4324.7,9.20829911]
[1757099180194,0.7949,4324.8,4324.7,6.896]
[1757099180393,0.7949,4324.8,4324.7,9.20829911]
[1757099180722,0.3357,4324.8,4324.7,9.20829911]
[1757099180929,0.025,4324.8,4324.7,9.20829911]
[1757099181295,0.025,4324.8,4324.7,12.11230665]
[1757099181492,0.025,4324.8,4324.7,12.57600665]
[1757099182436,0.025,4324.8,4324.7,18.01230665]
[1757099183138,0.025,4324.8,4324.7,14.11630665]
[1757099183344,0.025,4324.8,4324.7,17.34620665]
[1757099183739,0.7949,4324.8,4324.7,12.65820665]
[1757099184043,0.025,4324.8,4324.7,16.55420665]
[1757099184208,0.025,4324.8,4324.7,17.63600665]
[1757099184410,0.025,4324.8,4324.7,18.01230665]
[1757099185146,0.025,4325.8,4325.7,6.10376456]
[1757099185308,0.4842,4325.8,4325.7,10.69976845]
[1757099185505,0.7949,4325.8,4325.7,17.20421531]
[1757099185739,0.7949,4325.8,4325.7,17.89896612]
[1757099185939,1.2562,4325.8,4325.7,6.00651537]
[1757099186142,1.2562,4325.8,4325.7,3.0]
[1757099186345,1.2562,4325.8,4325.6,3.899]
[1757099186544,0.9205,4325.7,4325.6,3.899]
[1757099186748,1.2312,4325.7,4325.6,3.899]
[1757099186923,2.31182473,4325.6,4325.5,3.899]
[1757099187123,1.2312,4325.6,4325.3,3.9]
[1757099187447,3.23239969,4325.5,4325.3,3.9]
[1757099187639,1.2312,4325.4,4325.2,3.9]
[1757099187834,1.2312,4325.4,4325.2,3.901]
[1757099188159,0.4592,4325.3,4325.2,9.21302722]
[1757099188318,0.7699,4325.3,4325.2,15.71747408]
[1757099188518,0.7699,4325.3,4325.2,13.40544686]
[1757099188735,0.7699,4325.3,4325.2,6.901]
[1757099189963,1.2312,4325.3,4325.2,6.901]
[1757099190342,1.2312,4325.3,4325.2,3.0]
[1757099190726,0.7699,4325.3,4325.2,3.0]
[1757099193227,0.7709,4325.3,4325.2,3.0]
[1757099194037,0.7709,4325.3,4325.2,6.899]
[1757099194427,3.08287835,4325.3,4325.2,3.899]
[1757099194739,4.08365791,4325.3,4325.2,3.899]
[1757099194935,1.2322,4325.3,4325.2,3.899]
[1757099195131,0.7709,4325.3,4325.2,3.899]
[1757099195332,0.7709,4325.3,4325.1,3.898]
[1757099195533,0.4592,4325.2,4325.1,3.898]
[1757099195733,0.7699,4325.2,4325.1,3.898]
[1757099196822,0.7699,4325.2,4325.0,4.0112]
[1757099197027,0.4592,4325.1,4325.0,4.0112]
[1757099197251,0.7699,4325.1,4325.0,4.0112]
[1757099199228,3.08198526,4325.1,4325.0,4.0112]
[1757099199428,0.7699,4325.1,4325.0,4.0112]
[1757099200464,0.3107,4325.1,4325.0,6.32333872]
[1757099200646,0.001,4325.3,4325.0,6.32333872]
[1757099200850,0.4551,4325.3,4325.0,6.32333872]
[1757099201369,0.4551,4325.3,4325.1,2.31208494]
[1757099201666,0.2969,4325.1,4325.0,4.0112]
[1757099202036,0.001,4325.3,4325.0,6.32333872]
[1757099202238,0.4551,4325.3,4325.0,4.0112]
[1757099202434,0.4551,4325.3,4325.0,6.3233369]
[1757099203071,0.2969,4325.1,4325.0,4.0112]
[1757099203957,0.751,4325.1,4325.0,4.0112]
[1757099206074,0.2969,4325.1,4325.0,4.0112]
[1757099206287,0.751,4325.1,4325.0,4.0112]
[1757099206990,3.06308526,4325.1,4325.0,4.0112]
[1757099207172,2.31218607,4325.0,4324.5,3.0]
[1757099207360,2.31216518,4325.0,4324.6,3.89]
[1757099207557,0.2969,4324.7,4324.6,3.89]
[1757099207757,3.06329911,4324.7,4324.6,3.89]
[1757099208451,2.31240599,4324.6,4324.4,4.0062]
[1757099208654,2.76650599,4324.6,4324.4,4.0062]
[1757099208875,0.2969,4324.5,4324.4,4.0062]
[1757099209083,0.751,4324.5,4324.4,4.0062]
[1757099209676,0.751,4324.5,4324.4,0.1152]
[1757099209845,0.751,4324.5,4324.3,3.0]
[1757099210642,3.0634103,4324.5,4324.3,3.0]
[1757099210848,0.4541,4324.4,4324.3,3.0]
[1757099211382,0.751,4324.4,4324.3,3.0]
[1757099211682,0.2969,4324.4,4324.3,3.0]
[1757099212256,0.751,4324.4,4324.3,3.0]
[1757099213580,1.30009128,4324.4,4324.2,3.89]
[1757099213891,2.766613,4324.3,4324.2,3.89]
[1757099214102,0.751,4324.3,4324.2,3.89]
[1757099214406,3.063513,4324.3,4324.2,3.89]
[1757099214570,0.751,4324.3,4324.2,3.89]
[1757099214757,0.2969,4324.3,4324.1,0.004]
[1757099214957,0.4541,4324.2,4324.1,0.004]
[1757099215486,2.31248262,4324.4,4324.1,0.004]
[1757099215663,2.31251488,4324.3,4324.1,0.004]
[1757099215855,0.4541,4324.3,4324.1,0.004]
[1757099216592,3.55386648,4324.2,4324.1,0.004]
[1757099217896,12.90360928,4324.2,4323.8,1e-08]
[1757099218115,2.31272693,4323.9,4323.8,1e-08]
[1757099218418,2.31320842,4323.0,4322.9,0.004]
[1757099218554,6.50210842,4323.0,4322.9,0.004]
[1757099218757,8.28244292,4323.0,4322.9,0.004]
[1757099219601,11.28244292,4323.0,4322.9,1e-08]
[1757099219816,6.10526193,4322.9,4322.8,1e-08]
[1757099219994,9.20926193,4322.9,4322.8,1e-08]
[1757099220304,10.72721896,4322.9,4322.8,1e-08]
[1757099221094,7.62321896,4322.9,4322.8,1e-08]
[1757099221302,11.52121896,4322.9,4322.8,1e-08]
[1757099221805,19.16796176,4322.9,4322.8,1e-08]
[1757099224572,15.26896176,4322.9,4322.8,1e-08]
[1757099224770,19.16896176,4322.9,4322.8,1e-08]
[1757099225509,15.26896176,4322.9,4322.8,1e-08]
[1757099225728,19.16796176,4322.9,4322.8,1e-08]
[1757099227429,15.26896176,4322.9,4322.8,1e-08]
[1757099227643,19.16696176,4322.9,4322.8,1e-08]
[1757099228130,13.98666176,4322.9,4322.8,1e-08]
[1757099228336,17.88466176,4322.9,4322.8,1e-08]
[1757099228901,18.37496176,4322.9,4322.8,1e-08]
[1757099230687,13.98666176,4322.9,4322.8,1e-08]
[1757099230898,17.88366176,4322.9,4322.8,1e-08]
[1757099231322,17.88266176,4322.9,4322.8,1e-08]
[1757099231828,6.48591896,4322.9,4322.8,0.31020001]
[1757099232125,2.58991896,4322.9,4322.8,0.76400001]
[1757099232532,6.48791896,4322.9,4322.8,0.76400001]
[1757099232723,6.48791896,4322.9,4322.8,0.76800001]
[1757099232900,6.48891896,4322.9,4322.8,0.76800001]
[1757099233597,2.59091896,4322.9,4322.8,0.76800001]
[1757099233829,6.48891896,4322.9,4322.8,0.76800001]
[1757099235221,2.59091896,4322.9,4322.8,0.76800001]
[1757099235833,6.48791896,4322.9,4322.8,0.76800001]
[1757099236035,6.21126193,4322.9,4322.8,0.76800001]
[1757099236200,2.31426193,4322.9,4322.8,0.76800001]
[1757099236596,6.32546193,4322.9,4322.8,0.76800001]
[1757099238733,2.42946193,4322.9,4322.8,0.76800001]
[1757099238901,6.32446193,4322.9,4322.8,0.76800001]
[1757099240012,6.32446193,4322.9,4322.8,0.00400001]
[1757099240013,6.62246193,4322.9,4322.8,0.00400001]
[1757099240210,7.05566193,4322.9,4322.8,0.00400001]
[1757099240728,6.62246193,4322.9,4322.8,0.00400001]
[1757099241042,6.62146193,4322.9,4322.8,0.00400001]
[1757099242127,7.05466193,4322.9,4322.8,0.00400001]
[1757099243016,7.52986193,4322.9,4322.8,0.00400001]
[1757099244820,7.05466193,4322.9,4322.8,0.00400001]
[1757099247763,10.05466193,4322.9,4322.8,0.00400001]
[1757099248162,6.16066193,4322.9,4322.8,0.00400001]
[1757099248467,2.42946193,4322.9,4322.8,0.00400001]
[1757099248658,2.42946193,4322.9,4322.8,0.76800001]
[1757099248659,6.32146193,4322.9,4322.8,0.76800001]
[1757099249550,6.32146193,4322.9,4322.8,0.00400001]
[1757099250863,6.61946193,4322.9,4322.8,0.00400001]
[1757099253365,6.32146193,4322.9,4322.8,0.00400001]
[1757099253569,6.31946193,4322.9,4322.8,0.76800001]
[1757099254255,2.42946193,4322.9,4322.8,0.76800001]
[1757099254585,6.31946193,4322.9,4322.8,0.76800001]
[1757099255082,2.42946193,4322.9,4322.8,0.76800001]
[1757099255281,6.31946193,4322.9,4322.8,0.76800001]
[1757099255647,6.20426193,4322.9,4322.8,0.76800001]
[1757099255846,2.31426193,4322.9,4322.8,1.19770001]
[1757099256282,6.20426193,4322.9,4322.8,0.76800001]
[1757099261975,6.20426193,4322.9,4322.8,0.45780001]
[1757099262399,6.20426193,4322.9,4322.8,0.74620001]
[1757099263497,6.20426193,4322.9,4322.8,0.00400001]
[1757099263498,6.50096193,4322.9,4322.8,0.00400001]
[1757099263701,6.97026193,4322.9,4322.8,0.00400001]
[1757099268606,2.61096193,4322.9,4322.8,0.00400001]
[1757099268804,6.20426193,4322.9,4322.8,0.00400001]
[1757099269011,6.20426193,4322.9,4322.8,0.49340001]
[1757099270204,6.50096193,4322.9,4322.8,0.00400001]
[1757099271107,6.20426193,4322.9,4322.8,0.00400001]
[1757099272418,6.20426193,4322.9,4322.8,0.49340001]
[1757099272717,2.31426193,4322.9,4322.8,0.49340001]
[1757099272907,6.20426193,4322.9,4322.8,0.78180001]
[1757099275585,6.20426193,4322.9,4322.8,0.00400001]
[1757099276212,6.20426193,4322.9,4322.8,0.49340001]
[1757099276619,6.20426193,4322.9,4322.8,0.00400001]
[1757099278116,2.61096193,4322.9,4322.8,0.00400001]
[1757099278302,6.50096193,4322.9,4322.8,0.00400001]
[1757099278497,6.97026193,4322.9,4322.8,0.00400001]
[1757099279719,6.50096193,4322.9,4322.8,0.00400001]
[1757099280298,2.61096193,4322.9,4322.8,0.00400001]
[1757099280537,6.97026193,4322.9,4322.8,0.00400001]
[1757099280834,10.42736193,4322.9,4322.8,0.00400001]
[1757099281713,9.97026193,4322.9,4322.8,0.00400001]
[1757099282554,10.42736193,4322.9,4322.8,0.00400001]
[1757099289122,6.08026193,4322.9,4322.8,0.00400001]
[1757099289324,16.00379717,4322.9,4322.8,0.00400001]
[1757099289743,6.20426193,4322.9,4322.8,0.00400001]
[1757099290024,6.50666193,4322.9,4322.8,0.00400001]
[1757099290765,6.93446193,4322.9,4322.8,0.00400001]
[1757099291329,7.41576193,4322.9,4322.8,0.00400001]
[1757099291953,6.93446193,4322.9,4322.8,0.00400001]
[1757099292566,2.61666193,4322.9,4322.8,0.00400001]
[1757099292871,6.20426193,4322.9,4322.8,0.79400001]
[1757099293439,6.20426193,4322.9,4322.8,0.00400001]
[1757099293776,2.31426193,4322.9,4322.8,0.00400001]
[1757099293952,6.20326193,4322.9,4322.8,0.00400001]
[1757099294157,2.31426193,4322.9,4322.8,0.00400001]
[1757099294361,6.93346193,4322.9,4322.8,0.00400001]
[1757099296971,6.20326193,4322.9,4322.8,0.00400001]
[1757099297371,6.93346193,4322.9,4322.8,0.00400001]
[1757099301683,7.72546193,4322.9,4322.8,0.00400001]
[1757099302361,10.72546193,4322.9,4322.8,0.00400001]
[1757099305179,3.792,4322.8,4322.3,1e-08]
[1757099305379,6.10552952,4322.4,4322.3,1e-08]
[1757099305581,16.79976476,4322.4,4322.3,1e-08]
[1757099305785,16.79976476,4322.4,4321.9,0.004]
[1757099305786,2.31374363,4322.0,4321.9,0.004]
[1757099305982,15.70557887,4322.0,4321.9,0.004]
[1757099306183,16.43577887,4322.0,4321.9,0.004]
[1757099306559,6.10579717,4321.9,4321.8,1e-08]
[1757099306907,6.85043534,4321.9,4321.8,1e-08]
[1757099307051,14.08347058,4321.9,4321.8,1e-08]
[1757099307258,0.792,4320.9,4320.8,1e-08]
[1757099307452,18.2031679,4320.9,4320.8,1e-08]
[1757099307656,19.4146679,4320.9,4320.8,1e-08]
[1757099307868,19.52930759,4320.9,4320.8,1e-08]
[1757099314420,19.04900759,4320.9,4320.8,1e-08]
[1757099314768,15.15900759,4320.9,4320.8,1e-08]
[1757099314972,10.90933266,4320.9,4320.8,0.79000001]
[1757099315279,7.90933266,4320.9,4320.8,0.79000001]
[1757099315603,18.1423679,4320.9,4320.8,1e-08]
[1757099315915,18.9343679,4320.9,4320.8,1e-08]
[1757099317206,19.19770607,4320.9,4320.8,1e-08]
[1757099317374,19.67900607,4320.9,4320.8,1e-08]
[1757099317576,3.792,4320.8,4320.3,1e-08]
[1757099317918,12.60943573,4320.4,4320.3,1e-08]
[1757099318074,16.80183573,4320.4,4320.3,1e-08]
[1757099318276,3.10681481,4320.0,4319.8,1e-08]
[1757099318577,2.31508276,4319.5,4319.4,1e-08]
[1757099318802,12.00548276,4319.5,4319.4,1e-08]
[1757099319010,19.413818,4319.5,4319.4,1e-08]
[1757099322412,14.793618,4319.5,4319.4,0.78930001]
[1757099322618,18.684618,4319.5,4319.4,0.78930001]
[1757099322814,10.91208276,4319.5,4319.4,0.78930001]
[1757099323123,17.414918,4319.5,4319.4,0.78930001]
[1757099323495,14.414918,4319.5,4319.4,0.78930001]
[1757099323697,4.02108276,4319.5,4319.4,1.23920001]
[1757099323922,7.91208276,4319.5,4319.4,1.23920001]
[1757099324899,4.02108276,4319.5,4319.4,1.23920001]
[1757099325099,7.91208276,4319.5,4319.4,1.23920001]
[1757099326718,7.91208276,4319.5,4319.4,0.78930001]
[1757099327033,4.02108276,4319.5,4319.4,0.78930001]